[Event "20th Rochefort Chess Festival - Masters"]
[Site "Rochefort, France"]
[Date "2022.02.14"]
[Round "4.3"]
[White "Besson, Bastien"]
[Black "Demuth, Adrien"]
[Result "0-1"]
[TimeControl "1h30 + [30'']"]
[WhiteElo "2196"]
[BlackElo "2489"]

1. e4 {[%clk 01:30:57]} {[%emt 00:00:02]} g6 {[%clk 01:30:43]} {[%emt
00:00:17]} 2. d4 {[%clk 01:31:22]} {[%emt 00:00:05]} Bg7 {[%clk 01:31:10]}
{[%emt 00:00:04]} 3. Nc3 {[%clk 01:31:47]} {[%emt 00:00:04]} d6 {[%clk
01:31:06]} {[%emt 00:00:34]} 4. Be3 {[%clk 01:28:43]} {[%emt 00:03:35]} a6
{[%clk 01:31:13]} {[%emt 00:00:23]} 5. a4 {[%clk 01:28:42]} {[%emt 00:00:31]}
Nf6 {[%clk 01:30:09]} {[%emt 00:01:33]} 6. h3 {[%clk 01:27:11]} {[%emt
00:02:01]} O-O {[%clk 01:28:51]} {[%emt 00:01:49]} 7. Nf3 {[%clk 01:26:24]}
{[%emt 00:01:16]} b6 {[%clk 01:22:32]} {[%emt 00:06:49]} 8. Qd2 {[%clk
01:25:21]} {[%emt 00:01:33]} Bb7 {[%clk 01:22:15]} {[%emt 00:00:47]} 9. d5
{[%clk 01:25:21]} {[%emt 00:00:29]} c6 {[%clk 01:11:44]} {[%emt 00:11:01]} 10.
Bc4 {[%clk 01:19:52]} {[%emt 00:05:59]} b5 {[%clk 01:03:04]} {[%emt 00:09:11]}
11. dxc6 {[%clk 01:17:52]} {[%emt 00:02:29]} Bxc6 {[%clk 01:02:29]} {[%emt
00:01:06]} 12. axb5 {[%clk 01:12:21]} {[%emt 00:06:01]} axb5 {[%clk 01:02:47]}
{[%emt 00:00:13]} 13. Rxa8 {[%clk 01:12:47]} {[%emt 00:00:04]} Bxa8 {[%clk
01:03:13]} {[%emt 00:00:04]} 14. Bxb5 {[%clk 01:03:22]} {[%emt 00:09:55]} Nxe4
{[%clk 01:02:46]} {[%emt 00:00:57]} 15. Nxe4 {[%clk 01:03:48]} {[%emt
00:00:04]} Bxe4 {[%clk 01:03:11]} {[%emt 00:00:05]} 16. c3 {[%clk 01:03:54]}
{[%emt 00:00:23]} Bxf3 {[%clk 00:36:15]} {[%emt 00:27:26]} 17. gxf3 {[%clk
01:04:10]} {[%emt 00:00:13]} Qa5 {[%clk 00:35:34]} {[%emt 00:01:12]} 18. Be2
{[%clk 01:04:08]} {[%emt 00:00:31]} Qa1+ {[%clk 00:34:33]} {[%emt 00:01:32]} 19.
Qc1 {[%clk 00:58:28]} {[%emt 00:06:07]} Qa2 {[%clk 00:34:59]} {[%emt 00:00:07]}
20. O-O {[%clk 00:55:50]} {[%emt 00:03:08]} Nd7 {[%clk 00:35:02]} {[%emt
00:00:27]} 21. Qd2 {[%clk 00:49:19]} {[%emt 00:07:01]} Qb3 {[%clk 00:24:18]}
{[%emt 00:11:14]} 22. Ra1 {[%clk 00:44:31]} {[%emt 00:05:17]} Ne5 {[%clk
00:24:18]} {[%emt 00:00:30]} 23. Ra7 {[%clk 00:39:38]} {[%emt 00:05:24]} Bf6
{[%clk 00:20:43]} {[%emt 00:04:06]} 24. f4 {[%clk 00:35:59]} {[%emt 00:04:07]}
Nc6 {[%clk 00:15:34]} {[%emt 00:05:40]} 25. Ra3 {[%clk 00:34:30]} {[%emt
00:01:58]} Qe6 {[%clk 00:13:40]} {[%emt 00:02:25]} 26. Kg2 {[%clk 00:34:52]}
{[%emt 00:00:07]} d5 {[%clk 00:07:37]} {[%emt 00:06:33]} 27. Bf3 {[%clk
00:23:49]} {[%emt 00:11:33]} Rd8 {[%clk 00:06:24]} {[%emt 00:01:44]} 28. Ra6
{[%clk 00:23:44]} {[%emt 00:00:34]} Qc8 {[%clk 00:05:34]} {[%emt 00:01:20]} 29.
Qd3 {[%clk 00:23:24]} {[%emt 00:00:50]} e6 {[%clk 00:05:48]} {[%emt 00:00:17]}
30. Qb5 {[%clk 00:20:44]} {[%emt 00:03:09]} Ne7 {[%clk 00:05:02]} {[%emt
00:01:16]} 31. Bb6 {[%clk 00:20:32]} {[%emt 00:00:40]} Rd6 {[%clk 00:01:32]}
{[%emt 00:04:02]} 32. c4 {[%clk 00:18:38]} {[%emt 00:02:24]} Nf5 {[%clk
00:00:40]} {[%emt 00:01:22]} 33. c5 {[%clk 00:17:51]} {[%emt 00:01:17]} Rc6
{[%clk 00:01:09]} {[%emt 00:00:01]} 34. Qa4 {[%clk 00:17:46]} {[%emt 00:00:34]}
Kg7 {[%clk 00:01:29]} {[%emt 00:00:11]} 35. Ra8 {[%clk 00:16:58]} {[%emt
00:01:18]} Qb7 {[%clk 00:01:35]} {[%emt 00:00:24]} 36. Ra7 {[%clk 00:17:06]}
{[%emt 00:00:22]} Qc8 {[%clk 00:02:04]} {[%emt 00:00:02]} 37. b4 {[%clk
00:07:30]} {[%emt 00:10:07]} Nh4+ {[%clk 00:01:54]} {[%emt 00:00:39]} 38. Kg3
{[%clk 00:07:54]} {[%emt 00:00:05]} Nf5+ {[%clk 00:00:55]} {[%emt 00:01:30]} 39.
Kg2 {[%clk 00:06:27]} {[%emt 00:01:57]} Nh4+ {[%clk 00:01:24]} {[%emt
00:00:02]} 40. Kg3 {[%clk 00:06:53]} {[%emt 00:00:04]} Nf5+ {[%clk 00:01:51]}
{[%emt 00:00:03]} 41. Kh2 {[%clk 00:03:39]} {[%emt 00:03:44]} Nd4 {[%clk
00:02:17]} {[%emt 00:00:05]} 42. Bg2 {[%clk 00:01:45]} {[%emt 00:02:24]} Qb8
{[%clk 00:02:31]} {[%emt 00:00:16]} 43. b5 {[%clk 00:00:59]} {[%emt 00:01:16]}
Qxf4+ {[%clk 00:02:59]} {[%emt 00:00:01]} 44. Kg1 {[%clk 00:01:03]} {[%emt
00:00:27]} Bh4 {[%clk 00:01:45]} {[%emt 00:01:44]} 45. Qa2 {[%clk 00:00:52]}
{[%emt 00:00:40]} Nxb5 {[%clk 00:01:25]} {[%emt 00:00:51]} 46. Qb2+ {[%clk
00:00:44]} {[%emt 00:00:38]} Nd4 {[%clk 00:01:28]} {[%emt 00:00:27]} 47. Bc7
{[%clk 00:00:42]} {[%emt 00:00:32]} Rxc7 {[%clk 00:01:26]} {[%emt 00:00:32]} 48.
Rxc7 {[%clk 00:01:10]} {[%emt 00:00:03]} Qxc7 {[%clk 00:01:50]} {[%emt
00:00:05]} 49. Qxd4+ {[%clk 00:01:33]} {[%emt 00:00:07]} Bf6 {[%clk 00:02:18]}
{[%emt 00:00:02]} 50. Qb4 {[%clk 00:00:54]} {[%emt 00:01:09]} Be7 {[%clk
00:01:16]} {[%emt 00:01:33]} 51. Qc3+ {[%clk 00:01:22]} {[%emt 00:00:02]} Bf6
{[%clk 00:01:07]} {[%emt 00:00:38]} 52. Qb4 {[%clk 00:01:47]} {[%emt 00:00:06]}
Qc6 {[%clk 00:00:35]} {[%emt 00:01:01]} 53. Qb6 {[%clk 00:01:52]} {[%emt
00:00:25]} Qxb6 {[%clk 00:00:34]} {[%emt 00:00:32]} 54. cxb6 {[%clk 00:02:21]}
{[%emt 00:00:01]} Be5 {[%clk 00:00:33]} {[%emt 00:00:31]} 55. Kf1 {[%clk
00:02:44]} {[%emt 00:00:07]} Kf6 {[%clk 00:00:58]} {[%emt 00:00:05]} 56. Ke1
{[%clk 00:02:16]} {[%emt 00:00:58]} Bd6 {[%clk 00:00:34]} {[%emt 00:00:53]} 57.
Bf1 {[%clk 00:02:27]} {[%emt 00:00:19]} h5 {[%clk 00:00:39]} {[%emt 00:00:26]}
58. Bb5 {[%clk 00:02:27]} {[%emt 00:00:30]} Kf5 {[%clk 00:00:41]} {[%emt
00:00:28]} 59. Be8 {[%clk 00:02:23]} {[%emt 00:00:34]} f6 {[%clk 00:01:07]}
{[%emt 00:00:05]} 60. Bf7 {[%clk 00:02:41]} {[%emt 00:00:11]} h4 {[%clk
00:01:21]} {[%emt 00:00:16]} 61. Ke2 {[%clk 00:03:08]} {[%emt 00:00:03]} g5
{[%clk 00:01:45]} {[%emt 00:00:05]} 62. Kf3 {[%clk 00:03:13]} {[%emt 00:00:25]}
Bb8 {[%clk 00:01:41]} {[%emt 00:00:34]} 63. Bg8 {[%clk 00:03:31]} {[%emt
00:00:12]} d4 {[%clk 00:01:11]} {[%emt 00:01:01]} 64. Bh7+ {[%clk 00:02:32]}
{[%emt 00:01:29]} Ke5 {[%clk 00:01:40]} {[%emt 00:00:01]} 65. Bc2 {[%clk
00:02:07]} {[%emt 00:00:55]} f5 {[%clk 00:01:13]} {[%emt 00:00:57]} 66. Ba4
{[%clk 00:01:34]} {[%emt 00:01:03]} Kd6 {[%clk 00:01:03]} {[%emt 00:00:40]} 67.
Bb3 {[%clk 00:00:50]} {[%emt 00:01:14]} e5 {[%clk 00:01:16]} {[%emt 00:00:17]}
68. Bf7 {[%clk 00:00:36]} {[%emt 00:00:44]} e4+ {[%clk 00:00:52]} {[%emt
00:00:55]} 69. Ke2 {[%clk 00:00:43]} {[%emt 00:00:22]} Ke5 {[%clk 00:01:20]}
{[%emt 00:00:02]} 70. Be8 {[%clk 00:00:40]} {[%emt 00:00:33]} Kf4 {[%clk
00:01:35]} {[%emt 00:00:15]} 71. Ba4 {[%clk 00:00:50]} {[%emt 00:00:20]} g4
{[%clk 00:01:48]} {[%emt 00:00:17]} 72. Kf1 {[%clk 00:00:38]} {[%emt 00:00:42]}
gxh3 {[%clk 00:02:03]} {[%emt 00:00:14]} 73. Kg1 {[%clk 00:00:52]} {[%emt
00:00:16]} Kg5 {[%clk 00:02:28]} {[%emt 00:00:05]} 74. Bd1 {[%clk 00:01:10]}
{[%emt 00:00:13]} Kf6 {[%clk 00:02:34]} {[%emt 00:00:24]} 75. Be2 {[%clk
00:01:31]} {[%emt 00:00:10]} d3 {[%clk 00:02:52]} {[%emt 00:00:11]} 76. Bd1
{[%clk 00:01:55]} {[%emt 00:00:06]} f4 {[%clk 00:02:29]} {[%emt 00:00:53]} 77.
Ba4 {[%clk 00:02:05]} {[%emt 00:00:20]} e3 {[%clk 00:02:51]} {[%emt 00:00:08]}
78. Kf1 {[%clk 00:02:25]} {[%emt 00:00:10]} e2+ {[%clk 00:02:45]} {[%emt
00:00:36]} 79. Ke1 {[%clk 00:02:51]} {[%emt 00:00:04]} Bd6 {[%clk 00:03:11]}
{[%emt 00:00:04]} 0-1

[Event "20th Rochefort Chess Festival - Masters"]
[Site "Rochefort, France"]
[Date "2022.02.14"]
[Round "4.2"]
[White "Fecker, Noah"]
[Black "Bauer, Christian"]
[Result "0-1"]
[TimeControl "1h30 + [30'']"]
[WhiteElo "2328"]
[BlackElo "2613"]

1. e4 {[%clk 01:30:57]} {[%emt 00:00:02]} e6 {[%clk 01:30:09]} {[%emt
00:00:51]} 2. d4 {[%clk 01:31:22]} {[%emt 00:00:05]} d5 {[%clk 01:30:35]}
{[%emt 00:00:05]} 3. Nd2 {[%clk 01:31:50]} {[%emt 00:00:02]} c5 {[%clk
01:30:32]} {[%emt 00:00:32]} 4. Ngf3 {[%clk 01:30:50]} {[%emt 00:01:30]} cxd4
{[%clk 01:30:48]} {[%emt 00:00:15]} 5. exd5 {[%clk 01:29:53]} {[%emt 00:01:27]}
Qxd5 {[%clk 01:31:05]} {[%emt 00:00:13]} 6. Bc4 {[%clk 01:29:47]} {[%emt
00:00:36]} Qd7 {[%clk 01:30:06]} {[%emt 00:01:29]} 7. O-O {[%clk 01:29:57]}
{[%emt 00:00:20]} Nc6 {[%clk 01:30:03]} {[%emt 00:00:34]} 8. Nb3 {[%clk
01:28:37]} {[%emt 00:01:49]} a6 {[%clk 01:29:21]} {[%emt 00:01:13]} 9. Nbxd4
{[%clk 01:27:30]} {[%emt 00:01:36]} Nxd4 {[%clk 01:29:32]} {[%emt 00:00:20]} 10.
Nxd4 {[%clk 01:27:48]} {[%emt 00:00:11]} Nf6 {[%clk 01:28:29]} {[%emt
00:01:34]} 11. Re1 {[%clk 01:24:20]} {[%emt 00:03:57]} Bc5 {[%clk 01:12:47]}
{[%emt 00:16:12]} 12. Be3 {[%clk 01:18:06]} {[%emt 00:06:44]} O-O {[%clk
01:10:42]} {[%emt 00:02:35]} 13. Bb3 {[%clk 01:05:59]} {[%emt 00:12:38]} b6
{[%clk 01:02:50]} {[%emt 00:08:22]} 14. Nf3 {[%clk 00:58:26]} {[%emt 00:08:03]}
Qc7 {[%clk 00:59:38]} {[%emt 00:03:42]} 15. Bxc5 {[%clk 00:57:13]} {[%emt
00:01:43]} bxc5 {[%clk 01:00:01]} {[%emt 00:00:07]} 16. Qe2 {[%clk 00:53:04]}
{[%emt 00:04:39]} Bb7 {[%clk 00:58:35]} {[%emt 00:01:56]} 17. Rad1 {[%clk
00:51:50]} {[%emt 00:01:44]} Bd5 {[%clk 00:42:48]} {[%emt 00:16:17]} 18. Bxd5
{[%clk 00:43:53]} {[%emt 00:08:27]} exd5 {[%clk 00:42:11]} {[%emt 00:01:08]} 19.
Qd2 {[%clk 00:41:59]} {[%emt 00:02:23]} Qb6 {[%clk 00:39:48]} {[%emt 00:02:54]}
20. b3 {[%clk 00:40:48]} {[%emt 00:01:40]} Rad8 {[%clk 00:38:21]} {[%emt
00:01:57]} 21. Re5 {[%clk 00:38:05]} {[%emt 00:03:13]} h6 {[%clk 00:35:43]}
{[%emt 00:03:09]} 22. h3 {[%clk 00:37:33]} {[%emt 00:01:02]} d4 {[%clk
00:25:03]} {[%emt 00:11:11]} 23. Rde1 {[%clk 00:35:24]} {[%emt 00:02:38]} Nd5
{[%clk 00:22:26]} {[%emt 00:03:07]} 24. Qd3 {[%clk 00:34:00]} {[%emt 00:01:53]}
Nb4 {[%clk 00:19:06]} {[%emt 00:03:51]} 25. Qc4 {[%clk 00:22:17]} {[%emt
00:12:12]} d3 {[%clk 00:19:18]} {[%emt 00:00:19]} 26. c3 {[%clk 00:17:54]}
{[%emt 00:04:53]} d2 {[%clk 00:18:16]} {[%emt 00:01:32]} 27. Nxd2 {[%clk
00:17:48]} {[%emt 00:00:36]} Nd3 {[%clk 00:18:34]} {[%emt 00:00:13]} 28. Nf3
{[%clk 00:17:03]} {[%emt 00:01:13]} Nxe1 {[%clk 00:18:28]} {[%emt 00:00:37]} 29.
Rxe1 {[%clk 00:17:20]} {[%emt 00:00:12]} Rfe8 {[%clk 00:18:13]} {[%emt
00:00:46]} 30. Rxe8+ {[%clk 00:16:18]} {[%emt 00:01:32]} Rxe8 {[%clk 00:17:50]}
{[%emt 00:00:52]} 31. Qd3 {[%clk 00:14:41]} {[%emt 00:02:07]} Qe6 {[%clk
00:14:52]} {[%emt 00:03:28]} 32. Kf1 {[%clk 00:13:38]} {[%emt 00:01:33]} g6
{[%clk 00:13:37]} {[%emt 00:01:45]} 33. h4 {[%clk 00:13:08]} {[%emt 00:01:01]}
Kg7 {[%clk 00:11:46]} {[%emt 00:02:21]} 34. Qc2 {[%clk 00:11:34]} {[%emt
00:02:03]} c4 {[%clk 00:08:18]} {[%emt 00:03:59]} 35. Qd1 {[%clk 00:10:07]}
{[%emt 00:01:57]} Kg8 {[%clk 00:03:51]} {[%emt 00:04:57]} 36. Nd4 {[%clk
00:06:49]} {[%emt 00:03:47]} Qe4 {[%clk 00:02:55]} {[%emt 00:01:26]} 37. bxc4
{[%clk 00:07:17]} {[%emt 00:00:02]} Rb8 {[%clk 00:01:52]} {[%emt 00:01:33]} 38.
f3 {[%clk 00:06:50]} {[%emt 00:00:57]} Qxh4 {[%clk 00:02:01]} {[%emt 00:00:21]}
39. Qc2 {[%clk 00:06:08]} {[%emt 00:01:11]} Rb1+ {[%clk 00:01:47]} {[%emt
00:00:45]} 40. Ke2 {[%clk 00:06:34]} {[%emt 00:00:04]} Qe1+ {[%clk 00:02:08]}
{[%emt 00:00:10]} 0-1

[Event "20th Rochefort Chess Festival - Masters"]
[Site "Rochefort, France"]
[Date "2022.02.14"]
[Round "4.5"]
[White "Suarez Uriel, Adrian"]
[Black "Mirzoev, Emil"]
[Result "1-0"]
[TimeControl "1h30 + [30'']"]
[WhiteElo "2348"]
[BlackElo "2460"]

1. e4 {[%clk 01:30:55]} e6 {[%clk 01:12:57]} {[%emt 00:18:08]} 2. d4 {[%clk
01:31:15]} {[%emt 00:00:09]} d5 {[%clk 01:13:13]} {[%emt 00:00:14]} 3. Nc3
{[%clk 01:31:40]} {[%emt 00:00:05]} Bb4 {[%clk 01:13:39]} {[%emt 00:00:04]} 4.
e5 {[%clk 01:32:06]} {[%emt 00:00:04]} c5 {[%clk 01:14:05]} {[%emt 00:00:04]} 5.
a3 {[%clk 01:32:29]} {[%emt 00:00:07]} Ba5 {[%clk 01:14:15]} {[%emt 00:00:19]}
6. b4 {[%clk 01:32:09]} {[%emt 00:00:51]} cxd4 {[%clk 01:14:34]} {[%emt
00:00:11]} 7. Nb5 {[%clk 01:32:04]} {[%emt 00:00:35]} Bc7 {[%clk 01:14:53]}
{[%emt 00:00:10]} 8. f4 {[%clk 01:30:51]} {[%emt 00:01:43]} Bd7 {[%clk
01:15:17]} {[%emt 00:00:06]} 9. Nxc7+ {[%clk 01:19:32]} {[%emt 00:11:49]} Qxc7
{[%clk 01:15:44]} {[%emt 00:00:03]} 10. Bd3 {[%clk 01:19:52]} {[%emt 00:00:10]}
Ne7 {[%clk 01:13:33]} {[%emt 00:02:40]} 11. Nf3 {[%clk 01:20:16]} {[%emt
00:00:06]} Ba4 {[%clk 01:13:32]} {[%emt 00:00:31]} 12. O-O {[%clk 01:19:48]}
{[%emt 00:00:58]} Qb6 {[%clk 01:12:37]} {[%emt 00:01:24]} 13. Qe2 {[%clk
01:17:56]} {[%emt 00:02:23]} Nbc6 {[%clk 01:08:09]} {[%emt 00:04:59]} 14. Kh1
{[%clk 01:14:31]} {[%emt 00:03:54]} a6 {[%clk 01:07:51]} {[%emt 00:00:48]} 15.
Bd2 {[%clk 01:11:46]} {[%emt 00:03:15]} Rc8 {[%clk 00:59:57]} {[%emt 00:08:24]}
16. Be1 {[%clk 01:06:36]} {[%emt 00:05:39]} Bb5 {[%clk 00:56:08]} {[%emt
00:04:18]} 17. Bf2 {[%clk 01:03:42]} {[%emt 00:03:26]} Nf5 {[%clk 00:53:30]}
{[%emt 00:03:07]} 18. g4 {[%clk 01:01:32]} {[%emt 00:02:40]} Ne3 {[%clk
00:43:47]} {[%emt 00:10:13]} 19. Rg1 {[%clk 00:50:33]} {[%emt 00:11:30]} h5
{[%clk 00:42:38]} {[%emt 00:01:39]} 20. gxh5 {[%clk 00:50:58]} {[%emt
00:00:05]} Ne7 {[%clk 00:36:10]} {[%emt 00:06:57]} 21. Bxe3 {[%clk 00:40:16]}
{[%emt 00:11:13]} dxe3 {[%clk 00:36:01]} {[%emt 00:00:40]} 22. Rxg7 {[%clk
00:33:21]} {[%emt 00:07:24]} Nf5 {[%clk 00:35:37]} {[%emt 00:00:53]} 23. Rg5
{[%clk 00:29:03]} {[%emt 00:04:48]} Bxd3 {[%clk 00:34:57]} {[%emt 00:01:10]} 24.
cxd3 {[%clk 00:24:54]} {[%emt 00:04:39]} d4 {[%clk 00:34:50]} {[%emt 00:00:37]}
25. Qg2 {[%clk 00:24:51]} {[%emt 00:00:34]} Kd7 {[%clk 00:33:35]} {[%emt
00:01:44]} 26. Rxf5 {[%clk 00:17:41]} {[%emt 00:07:41]} exf5 {[%clk 00:33:59]}
{[%emt 00:00:06]} 27. e6+ {[%clk 00:18:09]} {[%emt 00:00:02]} Qxe6 {[%clk
00:31:07]} {[%emt 00:03:22]} 28. Nxd4 {[%clk 00:18:30]} {[%emt 00:00:09]} Qb6
{[%clk 00:31:25]} {[%emt 00:00:13]} 29. Qd5+ {[%clk 00:18:29]} {[%emt
00:00:30]} Qd6 {[%clk 00:29:51]} {[%emt 00:02:02]} 30. Qxf7+ {[%clk 00:18:10]}
{[%emt 00:00:51]} Qe7 {[%clk 00:30:20]} 31. Qd5+ {[%clk 00:16:49]} {[%emt
00:01:51]} Kc7 {[%clk 00:30:02]} {[%emt 00:00:47]} 32. Nxf5 {[%clk 00:17:00]}
{[%emt 00:00:21]} Qf6 {[%clk 00:30:07]} {[%emt 00:00:25]} 33. Rg1 {[%clk
00:11:52]} {[%emt 00:05:38]} e2 {[%clk 00:27:28]} {[%emt 00:03:10]} 34. Rg7+
{[%clk 00:07:35]} {[%emt 00:04:47]} Qxg7 {[%clk 00:27:29]} {[%emt 00:00:29]} 35.
Qd6# 1-0

[Event "20th Rochefort Chess Festival - Masters"]
[Site "Rochefort, France"]
[Date "2022.02.14"]
[Round "4.4"]
[White "Laurent-Paoli, Pierre"]
[Black "Lucas, Arthur"]
[Result "1-0"]
[TimeControl "1h30 + [30'']"]
[WhiteElo "2483"]
[BlackElo "2337"]

1. e4 {[%clk 01:30:14]} {[%emt 00:00:45]} c5 {[%clk 01:29:23]} {[%emt
00:01:38]} 2. Nf3 {[%clk 01:30:26]} {[%emt 00:00:18]} d6 {[%clk 01:29:08]}
{[%emt 00:00:46]} 3. d4 {[%clk 01:30:13]} {[%emt 00:00:43]} cxd4 {[%clk
01:29:33]} {[%emt 00:00:05]} 4. Nxd4 {[%clk 01:30:39]} {[%emt 00:00:04]} Nf6
{[%clk 01:29:58]} {[%emt 00:00:05]} 5. f3 {[%clk 01:30:33]} {[%emt 00:00:37]}
e5 {[%clk 01:28:42]} {[%emt 00:01:46]} 6. Nb3 {[%clk 01:30:06]} {[%emt
00:00:56]} d5 {[%clk 01:28:52]} {[%emt 00:00:21]} 7. Bg5 {[%clk 01:30:29]}
{[%emt 00:00:06]} Be6 {[%clk 01:28:43]} {[%emt 00:00:40]} 8. Bxf6 {[%clk
01:25:55]} {[%emt 00:05:03]} gxf6 {[%clk 01:29:05]} {[%emt 00:00:08]} 9. Bb5+
{[%clk 01:22:57]} {[%emt 00:03:28]} Nc6 {[%clk 01:28:59]} {[%emt 00:00:36]} 10.
exd5 {[%clk 01:18:43]} {[%emt 00:04:44]} Bxd5 {[%clk 01:20:05]} {[%emt
00:09:24]} 11. Nc3 {[%clk 01:16:11]} {[%emt 00:03:01]} Bb4 {[%clk 01:19:12]}
{[%emt 00:01:23]} 12. Qd3 {[%clk 01:06:41]} {[%emt 00:10:00]} Bxc3+ {[%clk
01:10:09]} {[%emt 00:09:33]} 13. bxc3 {[%clk 01:04:53]} {[%emt 00:02:18]} Be6
{[%clk 00:58:39]} {[%emt 00:12:01]} 14. Bxc6+ {[%clk 00:51:43]} {[%emt
00:13:39]} bxc6 {[%clk 00:59:05]} {[%emt 00:00:04]} 15. Qe3 {[%clk 00:51:44]}
{[%emt 00:00:28]} Qb6 {[%clk 00:56:07]} {[%emt 00:03:28]} 16. Nc5 {[%clk
00:40:59]} {[%emt 00:11:16]} O-O-O {[%clk 00:55:27]} {[%emt 00:01:09]} 17. Kf2
{[%clk 00:37:11]} {[%emt 00:04:18]} Rd5 {[%clk 00:53:43]} {[%emt 00:02:14]} 18.
Nd3 {[%clk 00:37:00]} {[%emt 00:00:40]} Rhd8 {[%clk 00:47:02]} {[%emt
00:07:12]} 19. Rhb1 {[%clk 00:33:23]} {[%emt 00:04:07]} Qxe3+ {[%clk 00:40:42]}
{[%emt 00:06:50]} 20. Kxe3 {[%clk 00:33:48]} {[%emt 00:00:04]} f5 {[%clk
00:30:08]} {[%emt 00:11:04]} 21. g3 {[%clk 00:32:55]} {[%emt 00:01:23]} e4
{[%clk 00:24:43]} {[%emt 00:05:55]} 22. fxe4 {[%clk 00:27:59]} {[%emt
00:05:27]} fxe4 {[%clk 00:24:52]} {[%emt 00:00:21]} 23. Kxe4 {[%clk 00:27:54]}
{[%emt 00:00:35]} Bf5+ {[%clk 00:17:03]} {[%emt 00:08:19]} 24. Kf4 {[%clk
00:28:19]} {[%emt 00:00:05]} Bxd3 {[%clk 00:17:23]} {[%emt 00:00:10]} 25. cxd3
{[%clk 00:28:43]} {[%emt 00:00:05]} Rxd3 {[%clk 00:17:50]} {[%emt 00:00:03]} 26.
Rb3 {[%clk 00:28:21]} {[%emt 00:00:52]} R8d5 {[%clk 00:10:24]} {[%emt
00:07:55]} 27. Rab1 {[%clk 00:26:55]} {[%emt 00:01:57]} Ra5 {[%clk 00:07:36]}
{[%emt 00:03:18]} 28. Ke4 {[%clk 00:14:26]} {[%emt 00:12:59]} Rd2 {[%clk
00:06:44]} {[%emt 00:01:22]} 29. Rb8+ {[%clk 00:14:08]} {[%emt 00:00:48]} Kd7
{[%clk 00:06:58]} {[%emt 00:00:16]} 30. h4 {[%clk 00:10:28]} {[%emt 00:04:10]}
Rdxa2 {[%clk 00:05:15]} {[%emt 00:02:14]} 31. Rh8 {[%clk 00:07:40]} {[%emt
00:03:18]} h5 {[%clk 00:02:54]} {[%emt 00:02:51]} 32. Rf1 {[%clk 00:05:53]}
{[%emt 00:02:16]} R2a4+ {[%clk 00:01:44]} {[%emt 00:01:40]} 33. Kd3 {[%clk
00:06:02]} {[%emt 00:00:21]} Rd5+ {[%clk 00:00:35]} {[%emt 00:01:39]} 34. Kc2
{[%clk 00:06:30]} {[%emt 00:00:01]} Ra2+ {[%clk 00:00:33]} {[%emt 00:00:32]} 35.
Kb3 {[%clk 00:06:55]} {[%emt 00:00:05]} Rg2 {[%clk 00:00:32]} {[%emt 00:00:31]}
36. Rxf7+ {[%clk 00:07:13]} {[%emt 00:00:13]} Kd6 {[%clk 00:00:39]} {[%emt
00:00:23]} 37. Rh6+ {[%clk 00:06:01]} {[%emt 00:01:43]} Kc5 {[%clk 00:00:42]}
{[%emt 00:00:27]} 38. Rxa7 {[%clk 00:05:08]} {[%emt 00:01:23]} Kb6 {[%clk
00:00:35]} {[%emt 00:00:37]} 39. Rg7 {[%clk 00:04:59]} {[%emt 00:00:38]} Rb5+
{[%clk 00:00:32]} {[%emt 00:00:33]} 40. Kc4 {[%clk 00:05:15]} {[%emt 00:00:14]}
Rc5+ {[%clk 00:00:48]} {[%emt 00:00:14]} 41. Kd3 {[%clk 00:05:26]} {[%emt
00:00:19]} Rd5+ {[%clk 00:00:40]} {[%emt 00:00:38]} 42. Ke3 {[%clk 00:04:17]}
{[%emt 00:01:38]} Rc2 {[%clk 00:00:49]} {[%emt 00:00:22]} 43. Rg5 {[%clk
00:02:46]} {[%emt 00:02:02]} Rxc3+ {[%clk 00:01:17]} {[%emt 00:00:02]} 44. Kf4
{[%clk 00:02:31]} {[%emt 00:00:44]} Rd4+ {[%clk 00:00:52]} {[%emt 00:00:55]} 45.
Kf5 {[%clk 00:01:03]} {[%emt 00:01:59]} Rf3+ {[%clk 00:00:39]} {[%emt
00:00:43]} 46. Kg6 {[%clk 00:00:41]} {[%emt 00:00:52]} Rg4 {[%clk 00:00:59]}
{[%emt 00:00:10]} 47. Rhxh5 {[%clk 00:00:38]} {[%emt 00:00:33]} Rfxg3 {[%clk
00:00:32]} {[%emt 00:00:57]} 48. Kf5 {[%clk 00:01:02]} {[%emt 00:00:05]} Rxg5+
{[%clk 00:00:54]} {[%emt 00:00:08]} 49. hxg5 {[%clk 00:01:25]} {[%emt
00:00:07]} c5 {[%clk 00:00:51]} {[%emt 00:00:33]} 50. g6 {[%clk 00:01:50]}
{[%emt 00:00:04]} c4 {[%clk 00:00:58]} {[%emt 00:00:23]} 51. Kf6 {[%clk
00:01:39]} {[%emt 00:00:41]} c3 {[%clk 00:00:34]} {[%emt 00:00:54]} 52. g7
{[%clk 00:02:01]} {[%emt 00:00:09]} Rf3 {[%clk 00:00:33]} {[%emt 00:00:31]} 53.
Ke7 {[%clk 00:01:32]} {[%emt 00:00:58]} Rg3 {[%clk 00:00:34]} {[%emt 00:00:29]}
54. Kf7 {[%clk 00:01:53]} {[%emt 00:00:09]} c2 {[%clk 00:00:34]} {[%emt
00:00:30]} 55. Rh1 {[%clk 00:02:18]} {[%emt 00:00:04]} Rf3+ {[%clk 00:00:31]}
{[%emt 00:00:33]} 56. Kg6 {[%clk 00:02:43]} {[%emt 00:00:05]} Rg3 {[%emt
00:00:31]} 57. Kh7 {[%clk 00:03:03]} {[%emt 00:00:09]} Kb5 {[%clk 00:00:36]}
{[%emt 00:00:26]} 58. Rc1 {[%clk 00:01:40]} {[%emt 00:01:53]} Rh3+ {[%clk
00:00:49]} {[%emt 00:00:17]} 59. Kg8 {[%clk 00:02:05]} {[%emt 00:00:05]} Rh2
{[%clk 00:00:58]} {[%emt 00:00:21]} 60. Rg1 {[%clk 00:02:19]} {[%emt 00:00:15]}
Kb4 {[%clk 00:00:44]} {[%emt 00:00:44]} 61. Kf8 {[%clk 00:02:19]} {[%emt
00:00:31]} Rd2 {[%clk 00:00:32]} {[%emt 00:00:42]} 62. Ke7 {[%clk 00:01:55]}
{[%emt 00:00:54]} Rd1 {[%clk 00:00:31]} {[%emt 00:00:31]} 63. g8=Q {[%clk
00:02:05]} {[%emt 00:00:19]} c1=Q {[%clk 00:00:32]} {[%emt 00:00:30]} 64. Qg4+
{[%clk 00:02:26]} {[%emt 00:00:09]} Kb5 {[%clk 00:00:31]} {[%emt 00:00:31]} 65.
Rxd1 {[%clk 00:02:29]} {[%emt 00:00:27]} Qe3+ {[%clk 00:00:32]} {[%emt
00:00:29]} 66. Kf7 {[%clk 00:02:40]} {[%emt 00:00:17]} Qf2+ {[%clk 00:00:50]}
{[%emt 00:00:15]} 67. Kg7 {[%emt 00:03:11]} Kb6 {[%emt 00:00:07]} 1-0

[ePGN "0.1;DGT LiveChess/2.2.5"]